fUSD/lending_fUSD_20260611
["ID","MTS","AMOUNT","RATE_DAILY","PERIOD"]
[424819766,1781182232000,-6821.7941,8.249e-05,2]
[424819767,1781182232000,-14405.8755,8.25e-05,2]
[424819763,1781182232000,-7551.20373078,7.945e-05,2]
[424819764,1781182232000,-29459.20991622,7.945e-05,2]
[424819777,1781182232000,-1000.0,8.349e-05,2]
[424819770,1781182232000,-22036.04006405,8.25e-05,2]
[424819778,1781182232000,-150.0,8.35e-05,2]
[424819785,1781182232000,-1264.87240786,8.353e-05,2]
[424819779,1781182232000,-499.99,8.353e-05,2]
[424819780,1781182232000,-435.77,8.353e-05,2]
[424819797,1781182232000,-278.66646894,8.353e-05,2]
[424819796,1781182232000,-21.32353106,8.353e-05,2]
[424819795,1781182232000,-1257.24646894,8.353e-05,2]
[424819792,1781182232000,-1296.66477383,8.353e-05,2]
[424819794,1781182232000,-621.68981601,8.353e-05,2]
[424819790,1781182232000,-1792.30379704,8.353e-05,2]
[424819793,1781182232000,-5032.08514418,8.353e-05,2]
[424819788,1781182232000,-971.72153587,8.353e-05,2]
[424819787,1781182232000,-417.51182976,8.353e-05,2]
[424819798,1781182232000,-458.88372006,8.353e-05,2]
[424819783,1781182232000,-688.86301301,8.353e-05,2]
[424819784,1781182232000,-1049.24108504,8.353e-05,2]
[424819782,1781182232000,-3677.72974158,8.353e-05,2]
[424819781,1781182232000,-1231.77503849,8.353e-05,2]
[424819789,1781182232000,-698.27534839,8.353e-05,2]
[424819804,1781182238000,-9999.99,8.39e-05,2]
[424819799,1781182238000,-541.10627994,8.353e-05,2]
[424819802,1781182238000,-1191.97,8.39e-05,2]
[424819810,1781182238000,-14643.65,8.424e-05,2]
[424819801,1781182238000,-150.99,8.39e-05,2]
[424819803,1781182238000,-7665.35,8.39e-05,2]
[424819800,1781182238000,-215.95576085,8.39e-05,2]
[424819806,1781182238000,-2000.0,8.405e-05,2]
[424819807,1781182238000,-150.0,8.414e-05,2]
[424819809,1781182238000,-2395.09,8.424e-05,2]
[424819808,1781182238000,-356.65,8.415e-05,2]
[424819811,1781182238000,-467.21,8.43e-05,2]
[424819812,1781182238000,-37662.61886868,8.438e-05,2]
[424819805,1781182238000,-160.0,8.392e-05,2]
[424819813,1781182238000,-1102.80906657,8.438e-05,2]
[424819859,1781182239000,-150.0,8.763e-05,2]
[424819860,1781182239000,-639.36279319,8.781e-05,2]
[424819861,1781182239000,-6257.2516,8.849e-05,2]
[424819863,1781182239000,-500.0,8.889e-05,2]
[424819862,1781182239000,-200.0,8.887e-05,2]
[424819866,1781182239000,-1000.0,9.129e-05,2]
[424819864,1781182239000,-166.66,8.889e-05,2]
[424819870,1781182239000,-774.30738054,9.184e-05,2]
[424819869,1781182239000,-218.38047961,9.184e-05,2]
[424819871,1781182239000,-250.0,9.184e-05,2]
[424819868,1781182239000,-166.66,9.183e-05,2]
[424819865,1781182239000,-250.0,9.074e-05,2]
[424819857,1781182239000,-186.0,8.744e-05,2]
[424819852,1781182239000,-343.46689181,8.669e-05,2]
[424819855,1781182239000,-250.0,8.725e-05,2]
[424819856,1781182239000,-257.94060578,8.74e-05,2]
[424819853,1781182239000,-830.51,8.684e-05,2]
[424819851,1781182239000,-150.0,8.662e-05,2]
[424819850,1781182239000,-5565.4,8.65e-05,2]
[424819849,1781182239000,-535.35,8.633e-05,2]
[424819846,1781182239000,-154.70902673,8.499e-05,2]
[424819847,1781182239000,-150.0,8.579e-05,2]
[424819848,1781182239000,-9868.49,8.595e-05,2]
[424819842,1781182239000,-2226.39,8.438e-05,2]
[424819845,1781182239000,-150.0,8.497e-05,2]
[424819844,1781182239000,-11322.63,8.44e-05,2]
[424819843,1781182239000,-6471.38438208,8.438e-05,2]
[424819872,1781182239000,-559.34228233,9.184e-05,2]
[424819858,1781182239000,-150.13075189,8.763e-05,2]
[424819867,1781182239000,-500.0,9.163e-05,2]
[424819854,1781182239000,-567.91,8.704e-05,2]
[424819873,1781182239000,-255.0,9.185e-05,2]
[424819874,1781182239000,-1600.0,9.361e-05,2]
[424819900,1781182239000,-500.0,0.00011081,2]
[424819902,1781182239000,-736.0,0.00011114,2]
[424819901,1781182239000,-88190.76636675,0.00011099,2]
[424819899,1781182239000,-166.66,0.00011068,2]
[424819897,1781182239000,-150.0,0.00010959,2]
[424819898,1781182239000,-2583.58,0.0001103,2]
[424819895,1781182239000,-150.0,0.00010959,2]
[424819896,1781182239000,-166.66,0.00010959,2]
[424819894,1781182239000,-500.0,0.00010807,2]
[424819893,1781182239000,-2583.58,0.00010779,2]
[424819891,1781182239000,-1600.0,0.00010532,2]
[424819892,1781182239000,-500.0,0.00010533,2]
[424819888,1781182239000,-160.0,0.00010406,2]
[424819903,1781182239000,-15886.23871772,0.00011133,2]
[424819889,1781182239000,-2000.0,0.00010506,2]
[424819890,1781182239000,-2583.58,0.00010529,2]
[424819876,1781182239000,-500.0,9.437e-05,2]
[424819877,1781182239000,-2000.0,9.455e-05,2]
[424819878,1781182239000,-166.66,9.476e-05,2]
[424819881,1781182239000,-500.0,9.985e-05,2]
[424819882,1781182239000,-2583.58,0.00010027,2]
[424819875,1781182239000,-10000.0,9.4e-05,2]
[424819880,1781182239000,-166.66,9.77e-05,2]
[424819883,1781182239000,-166.66,0.00010063,2]
[424819885,1781182239000,-500.0,0.00010259,2]
[424819884,1781182239000,-433.0,0.00010104,2]
[424819886,1781182239000,-2583.58,0.00010278,2]
[424819887,1781182239000,-166.66,0.00010357,2]
[424819879,1781182239000,-500.0,9.711e-05,2]
[424819943,1781182240000,-150.0,0.00013425,3]
[424819946,1781182240000,-150.0,0.00013425,3]
[424819944,1781182240000,-500.0,0.00013425,2]
[424819942,1781182240000,-150.0,0.00013425,3]
[424819938,1781182240000,-500.0,0.00013425,2]
[424819941,1781182240000,-500.0,0.00013425,2]
[424819937,1781182240000,-500.0,0.00013425,2]
[424819939,1781182240000,-150.0,0.00013425,3]
[424819936,1781182240000,-500.0,0.00013425,2]
[424819948,1781182240000,-180.16190752,0.00013425,3]
[424819940,1781182240000,-150.0,0.00013425,3]
[424819935,1781182240000,-500.0,0.00013425,2]
[424819952,1781182240000,-500.0,0.00013425,3]
[424819947,1781182240000,-490.26130386,0.00013425,2]
[424819945,1781182240000,-188.15521262,0.00013425,3]
[424819950,1781182240000,-500.0,0.00013425,3]
[424819951,1781182240000,-500.0,0.00013425,3]
[424819954,1781182240000,-500.0,0.00013425,3]
[424819955,1781182240000,-500.0,0.00013425,3]
[424819958,1781182240000,-2129.0,0.00013452,2]
[424819959,1781182240000,-15886.23871763,0.00013487,2]
[424819957,1781182240000,-432.08847551,0.00013425,3]
[424819961,1781182240000,-574.57860626,0.00013698,2]
[424819963,1781182240000,-500.0,0.00013698,2]
[424819960,1781182240000,-500.0,0.00013547,2]
[424819934,1781182240000,-500.0,0.00013425,2]
[424819949,1781182240000,-500.0,0.00013425,3]
[424819933,1781182240000,-500.0,0.00013425,2]
[424819918,1781182240000,-1252.0,0.00012224,2]
[424819931,1781182240000,-500.0,0.00013425,2]
[424819962,1781182240000,-500.0,0.00013698,2]
[424819905,1781182240000,-155.04,0.00011233,2]
[424819904,1781182240000,-166.66,0.00011178,2]
[424819907,1781182240000,-500.0,0.00011355,2]
[424819906,1781182240000,-166.66,0.00011288,2]
[424819908,1781182240000,-88190.7663667,0.00011383,2]
[424819909,1781182240000,-166.66,0.00011397,2]
[424819910,1781182240000,-166.66,0.00011507,2]
[424819913,1781182240000,-1600.0,0.00011702,2]
[424819915,1781182240000,-230.34035204,0.00011966,2]
[424819912,1781182240000,-500.0,0.00011629,2]
[424819914,1781182240000,-500.0,0.00011903,2]
[424819911,1781182240000,-2000.0,0.00011556,2]
[424819916,1781182240000,-5565.4,0.00012109,2]
[424819917,1781182240000,-500.0,0.00012177,2]
[424819919,1781182240000,-944.18813705,0.00012277,2]
[424819925,1781182240000,-1600.0,0.00012872,2]
[424819920,1781182240000,-270.02,0.00012329,2]
[424819926,1781182240000,-276.0,0.00012877,2]
[424819921,1781182240000,-171.13,0.00012329,2]
[424819922,1781182240000,-500.0,0.00012451,2]
[424819923,1781182240000,-2000.0,0.00012607,2]
[424819924,1781182240000,-500.0,0.00012725,2]
[424819927,1781182240000,-500.0,0.00012999,2]
[424819929,1781182240000,-199.5,0.00013349,2]
[424819930,1781182240000,-500.0,0.00013425,2]
[424819928,1781182240000,-500.0,0.00013273,2]
[424819932,1781182240000,-500.0,0.00013425,2]
[424819965,1781182240000,-500.0,0.00013698,2]
[424820006,1781182240000,-7595.26624287,0.00014015,2]
[424819967,1781182240000,-579.39543898,0.00013698,2]
[424820004,1781182240000,-88190.7663667,0.00013977,2]
[424819997,1781182240000,-175.0,0.00013698,2]
[424819998,1781182240000,-500.0,0.00013698,2]
[424820001,1781182240000,-2500.0,0.00013699,2]
[424819999,1781182240000,-500.0,0.00013698,2]
[424820000,1781182240000,-200.0,0.00013699,2]
[424820005,1781182240000,-250.0,0.00014,2]
[424820026,1781182240000,-300.0,0.00015001,2]
[424820007,1781182240000,-686.46699668,0.00014015,2]
[424820010,1781182240000,-1555.5,0.00014291,2]
[424820009,1781182240000,-821.726453,0.00014284,2]
[424820013,1781182240000,-151.0,0.0001463,2]
[424820008,1781182240000,-1600.0,0.00014042,2]
[424820011,1781182240000,-1945.69,0.00014504,2]
[424820012,1781182240000,-151.0,0.0001463,2]
[424820015,1781182240000,-5800.0,0.00014832,2]
[424820017,1781182240000,-168.91634944,0.00014877,2]
[424820014,1781182240000,-5800.0,0.00014823,2]
[424820016,1781182240000,-1613.0535,0.00014839,2]
[424820019,1781182240000,-300.0,0.00014999,2]
[424820018,1781182240000,-500.0,0.00014999,2]
[424820021,1781182240000,-300.0,0.00014999,2]
[424820020,1781182240000,-300.0,0.00014999,2]
[424820023,1781182240000,-666.0,0.00014999,2]
[424820024,1781182240000,-10212.09716464,0.00015,2]
[424820022,1781182240000,-300.0,0.00014999,2]
[424820025,1781182240000,-9226.1837,0.00015,2]
[424819995,1781182240000,-500.0,0.00013698,2]
[424819996,1781182240000,-500.0,0.00013698,2]
[424819964,1781182240000,-500.0,0.00013698,2]
[424820003,1781182240000,-380.81750763,0.00013821,2]
[424819966,1781182240000,-500.0,0.00013698,2]
[424819968,1781182240000,-500.0,0.00013698,2]
[424819973,1781182240000,-500.0,0.00013698,2]
[424819974,1781182240000,-500.0,0.00013698,2]
[424819970,1781182240000,-500.0,0.00013698,2]
[424819971,1781182240000,-500.0,0.00013698,2]
[424819975,1781182240000,-500.0,0.00013698,2]
[424820002,1781182240000,-1500.0,0.00013743,2]
[424819969,1781182240000,-500.0,0.00013698,2]
[424819977,1781182240000,-500.0,0.00013698,2]
[424819978,1781182240000,-500.0,0.00013698,2]
[424819980,1781182240000,-500.0,0.00013698,2]
[424819979,1781182240000,-500.0,0.00013698,2]
[424819976,1781182240000,-500.0,0.00013698,2]
[424819983,1781182240000,-500.0,0.00013698,2]
[424819981,1781182240000,-500.0,0.00013698,2]
[424819992,1781182240000,-500.0,0.00013698,2]
[424819993,1781182240000,-500.0,0.00013698,2]
[424819991,1781182240000,-500.0,0.00013698,2]
[424819990,1781182240000,-276.57,0.00013698,2]
[424819987,1781182240000,-500.0,0.00013698,2]
[424819994,1781182240000,-500.0,0.00013698,2]
[424819989,1781182240000,-500.0,0.00013698,2]
[424819986,1781182240000,-500.0,0.00013698,2]
[424819984,1781182240000,-500.0,0.00013698,2]
[424819985,1781182240000,-500.0,0.00013698,2]
[424819982,1781182240000,-500.0,0.00013698,2]
[424819988,1781182240000,-500.0,0.00013698,2]
[424820069,1781182241000,-172.0,0.00015352,2]
[424820068,1781182241000,-10000.0,0.00015318,2]
[424820067,1781182241000,-9226.1837,0.000153,2]
[424820064,1781182241000,-500.0,0.00015265,2]
[424820063,1781182241000,-9226.1837,0.000152,2]
[424820065,1781182241000,-150.0,0.00015265,2]
[424820061,1781182241000,-500.0,0.00015199,2]
[424820062,1781182241000,-10212.09716464,0.000152,2]
[424820060,1781182241000,-7009.79311518,0.00015144,2]
[424820059,1781182241000,-900.0,0.00015068,2]
[424820066,1781182241000,-10212.09716464,0.000153,2]
[424820072,1781182241000,-9226.1837,0.000155,2]
[424820084,1781182241000,-9226.1837,0.000158,2]
[424820074,1781182241000,-10212.09716464,0.000156,2]
[424820071,1781182241000,-10212.09716464,0.000155,2]
[424820075,1781182241000,-9226.1837,0.000156,2]
[424820077,1781182241000,-3838.54154963,0.00015674,2]
[424820073,1781182241000,-3838.54154963,0.00015569,2]
[424820076,1781182241000,-500.0,0.00015616,2]
[424820078,1781182241000,-3838.54154963,0.00015678,2]
[424820079,1781182241000,-3838.54154963,0.00015731,2]
[424820080,1781182241000,-3838.54154963,0.00015739,2]
[424820083,1781182241000,-10212.09716464,0.000158,2]
[424820082,1781182241000,-3838.54154963,0.00015778,2]
[424820085,1781182241000,-2000.0,0.000158,2]
[424820058,1781182241000,-300.0,0.00015067,2]
[424820070,1781182241000,-1672.7364795,0.00015387,2]
[424820057,1781182241000,-300.0,0.00015067,2]
[424820041,1781182241000,-300.0,0.00015018,2]
[424820047,1781182241000,-300.0,0.00015038,2]
[424820089,1781182241000,-10212.09716464,0.000159,2]
[424820029,1781182241000,-300.0,0.00015001,2]
[424820030,1781182241000,-666.0,0.00015001,2]
[424820028,1781182241000,-300.0,0.00015001,2]
[424820031,1781182241000,-300.0,0.00015011,2]
[424820033,1781182241000,-300.0,0.00015011,2]
[424820032,1781182241000,-300.0,0.00015011,2]
[424820034,1781182241000,-300.0,0.00015011,2]
[424820036,1781182241000,-300.0,0.00015017,2]
[424820037,1781182241000,-300.0,0.00015017,2]
[424820043,1781182241000,-300.0,0.00015018,2]
[424820040,1781182241000,-666.0,0.00015017,2]
[424820035,1781182241000,-666.0,0.00015011,2]
[424820038,1781182241000,-300.0,0.00015017,2]
[424820039,1781182241000,-300.0,0.00015017,2]
[424820042,1781182241000,-300.0,0.00015018,2]
[424820044,1781182241000,-300.0,0.00015018,2]
[424820045,1781182241000,-666.0,0.00015018,2]
[424820046,1781182241000,-300.0,0.00015038,2]
[424820048,1781182241000,-300.0,0.00015038,2]
[424820053,1781182241000,-300.0,0.0001504,2]
[424820054,1781182241000,-300.0,0.0001504,2]
[424820050,1781182241000,-687.07472415,0.00015038,2]
[424820051,1781182241000,-300.0,0.0001504,2]
[424820049,1781182241000,-300.0,0.00015038,2]
[424820055,1781182241000,-300.0,0.00015067,2]
[424820052,1781182241000,-300.0,0.0001504,2]
[424820056,1781182241000,-300.0,0.00015067,2]
[424820027,1781182241000,-300.0,0.00015001,2]
[424820087,1781182241000,-63464.0,0.00015863,2]
[424820086,1781182241000,-15886.23871763,0.0001584,2]
[424820129,1781182241000,-88190.7663667,0.00016571,2]
[424820118,1781182241000,-249.05,0.00016438,2]
[424820121,1781182241000,-3838.54154963,0.00016446,2]
[424820120,1781182241000,-900.0,0.00016438,2]
[424820119,1781182241000,-1052.0,0.00016438,2]
[424820123,1781182241000,-3838.54154963,0.0001645,2]
[424820125,1781182241000,-200.0,0.00016471,2]
[424820132,1781182241000,-10212.09716464,0.000166,2]
[424820133,1781182241000,-8281.73323951,0.00016695,2]
[424820134,1781182241000,-10212.09716464,0.000167,2]
[424820137,1781182241000,-900.0,0.000169,6]
[424820139,1781182241000,-1865.36488656,0.00017031,2]
[424820127,1781182241000,-1798.80895522,0.00016483,2]
[424820141,1781182241000,-10212.09716464,0.000171,2]
[424820140,1781182241000,-500.0,0.00017099,2]
[424820138,1781182241000,-10212.09716464,0.000169,2]
[424820135,1781182241000,-168.44,0.00016712,2]
[424820143,1781182241000,-1052.0,0.0001726,2]
[424820144,1781182241000,-168.91634944,0.00017349,2]
[424820145,1781182241000,-10212.09716464,0.000174,2]
[424820146,1781182241000,-1934.38338736,0.00017579,2]
[424820148,1781182241000,-166.32,0.00017626,2]
[424820149,1781182241000,-500.0,0.00017799,2]
[424820150,1781182241000,-10212.09716464,0.000178,2]
[424820147,1781182241000,-10212.09716464,0.000176,2]
[424820081,1781182241000,-250.0,0.00015778,2]
[424820142,1781182241000,-10212.09716464,0.000172,2]
[424820131,1781182241000,-166.32,0.00016589,2]
[424820136,1781182241000,-270.02,0.00016767,2]
[424820117,1781182241000,-1760.5,0.00016438,2]
[424820116,1781182241000,-9226.1837,0.000164,2]
[424820090,1781182241000,-9226.1837,0.000159,2]
[424820091,1781182241000,-400.0,0.000159,5]
[424820092,1781182241000,-1734.62772924,0.00015935,2]
[424820095,1781182241000,-300.0,0.00016,2]
[424820094,1781182241000,-3838.54154963,0.00016,2]
[424820096,1781182241000,-404.45804041,0.00016,2]
[424820093,1781182241000,-3838.54154963,0.00015979,2]
[424820097,1781182241000,-3838.54154963,0.00016045,2]
[424820099,1781182241000,-500.0,0.00016099,2]
[424820098,1781182241000,-3838.54154963,0.00016078,2]
[424820101,1781182241000,-9226.1837,0.000161,2]
[424820100,1781182241000,-10212.09716464,0.000161,2]
[424820102,1781182241000,-404.45804041,0.000161,2]
[424820088,1781182241000,-3838.54154963,0.00015897,2]
[424820115,1781182241000,-10212.09716464,0.000164,2]
[424820103,1781182241000,-168.91634944,0.00016113,2]
[424820114,1781182241000,-500.0,0.00016399,2]
[424820113,1781182241000,-3838.54154963,0.00016375,2]
[424820111,1781182241000,-9226.1837,0.000162,2]
[424820110,1781182241000,-10212.09716464,0.000162,2]
[424820112,1781182241000,-3838.54154963,0.0001627,2]
[424820109,1781182241000,-500.0,0.00016199,2]
[424820106,1781182241000,-3838.54154963,0.00016146,2]
[424820107,1781182241000,-3838.54154963,0.00016148,2]
[424820105,1781182241000,-9999.99,0.00016116,2]
[424820104,1781182241000,-3838.54154963,0.00016113,2]
[424820108,1781182241000,-3838.54154963,0.0001619,2]
[424820188,1781182242000,-1280.88388877,0.00018675,2]
[424820192,1781182242000,-151.0,0.00018675,2]
[424820191,1781182242000,-1328.27659266,0.00018675,2]
[424820190,1781182242000,-151.0,0.00018675,2]
[424820189,1781182242000,-578.20924308,0.00018675,2]
[424820182,1781182242000,-151.0,0.00018675,2]
[424820185,1781182242000,-209.40437684,0.00018675,2]
[424820183,1781182242000,-1235.18214925,0.00018675,2]
[424820187,1781182242000,-151.0,0.00018675,2]
[424820184,1781182242000,-151.0,0.00018675,2]
[424820193,1781182242000,-721.12765534,0.00018675,2]
[424820186,1781182242000,-174.61919141,0.00018675,2]
[424820200,1781182242000,-152.0,0.00018675,2]
[424820201,1781182242000,-4853.74383408,0.00018675,2]
[424820196,1781182242000,-2080.17592889,0.00018675,2]
[424820199,1781182242000,-1428.38747117,0.00018675,2]
[424820195,1781182242000,-1377.42282658,0.00018675,2]
[424820197,1781182242000,-209.40437684,0.00018675,2]
[424820198,1781182242000,-151.0,0.00018675,2]
[424820202,1781182242000,-151.0,0.00018675,2]
[424820203,1781182242000,-500.0,0.00018675,2]
[424820204,1781182242000,-151.0,0.00018675,2]
[424820205,1781182242000,-483.14966213,0.00018675,2]
[424820208,1781182242000,-1481.2378076,0.00018675,2]
[424820207,1781182242000,-151.0,0.00018675,2]
[424820209,1781182242000,-151.0,0.00018675,2]
[424820194,1781182242000,-151.0,0.00018675,2]
[424820181,1781182242000,-1191.11104074,0.00018675,2]
[424820212,1781182242000,-500.0,0.00018675,2]
[424820178,1781182242000,-1148.61238259,0.00018675,2]
[424820151,1781182242000,-1125.0,0.00017861,2]
[424820153,1781182242000,-350.0,0.00018,2]
[424820154,1781182242000,-174.99015823,0.0001805,2]
[424820155,1781182242000,-528.0,0.00018082,2]
[424820156,1781182242000,-150.0,0.000181,7]
[424820157,1781182242000,-10212.09716464,0.000181,2]
[424820159,1781182242000,-15886.23871763,0.00018194,2]
[424820158,1781182242000,-2005.9555727,0.00018127,2]
[424820160,1781182242000,-10212.09716464,0.000183,2]
[424820161,1781182242000,-249.0,0.00018349,2]
[424820165,1781182242000,-153.38782772,0.00018575,2]
[424820163,1781182242000,-10212.09716464,0.000185,2]
[424820164,1781182242000,-174.99015823,0.00018566,2]
[424820162,1781182242000,-1760.5,0.0001841,2]
[424820166,1781182242000,-166.32,0.00018663,2]
[424820168,1781182242000,-1030.0,0.00018675,2]
[424820167,1781182242000,-153.0824764,0.00018675,2]
[424820169,1781182242000,-158.71838294,0.00018675,2]
[424820175,1781182242000,-151.0,0.00018675,2]
[424820170,1781182242000,-258.53701901,0.00018675,2]
[424820174,1781182242000,-1107.63007,0.00018675,2]
[424820173,1781182242000,-200.0,0.00018675,2]
[424820172,1781182242000,-1068.11,0.00018675,2]
[424820171,1781182242000,-151.0,0.00018675,2]
[424820177,1781182242000,-209.40437684,0.00018675,2]
[424820176,1781182242000,-151.0,0.00018675,2]
[424820179,1781182242000,-151.0,0.00018675,2]
[424820180,1781182242000,-154.12265554,0.00018675,2]
[424820206,1781182242000,-151.0,0.00018675,2]
[424820152,1781182242000,-10212.09716464,0.000179,2]
[424820211,1781182242000,-500.0,0.00018675,2]
[424820242,1781182242000,-151.0,0.00018675,2]
[424820246,1781182242000,-1842.0326633,0.00018675,2]
[424820245,1781182242000,-151.0,0.00018675,2]
[424820247,1781182242000,-151.0,0.00018675,2]
[424820249,1781182242000,-500.0,0.00018675,2]
[424820248,1781182242000,-500.0,0.00018675,2]
[424820250,1781182242000,-151.0,0.00018675,2]
[424820251,1781182242000,-152.0,0.00018675,2]
[424820252,1781182242000,-1910.18787185,0.00018675,2]
[424820253,1781182242000,-151.0,0.00018675,2]
[424820257,1781182242000,-152.0,0.00018675,2]
[424820259,1781182242000,-151.0,0.00018675,2]
[424820258,1781182242000,-1980.8648231,0.00018675,2]
[424820256,1781182242000,-151.0,0.00018675,2]
[424820255,1781182242000,-500.0,0.00018675,2]
[424820254,1781182242000,-500.0,0.00018675,2]
[424820262,1781182242000,-151.0,0.00018675,2]
[424820260,1781182242000,-500.0,0.00018675,2]
[424820261,1781182242000,-500.0,0.00018675,2]
[424820263,1781182242000,-152.0,0.00018675,2]
[424820265,1781182242000,-500.0,0.00018675,2]
[424820264,1781182242000,-2054.15682156,0.00018675,2]
[424820267,1781182242000,-500.0,0.00018675,2]
[424820268,1781182242000,-151.0,0.00018675,2]
[424820270,1781182242000,-500.0,0.00018675,2]
[424820269,1781182242000,-500.0,0.00018675,2]
[424820210,1781182242000,-152.0,0.00018675,2]
[424820244,1781182242000,-152.0,0.00018675,2]
[424820243,1781182242000,-500.0,0.00018675,2]
[424820266,1781182242000,-151.0,0.00018675,2]
[424820241,1781182242000,-500.0,0.00018675,2]
[424820213,1781182242000,-9552.16786547,0.00018675,2]
[424820215,1781182242000,-152.0,0.00018675,2]
[424820214,1781182242000,-151.0,0.00018675,2]
[424820217,1781182242000,-500.0,0.00018675,2]
[424820216,1781182242000,-151.0,0.00018675,2]
[424820219,1781182242000,-1000.0,0.00018675,2]
[424820220,1781182242000,-151.0,0.00018675,2]
[424820240,1781182242000,-1776.30922209,0.00018675,2]
[424820222,1781182242000,-152.0,0.00018675,2]
[424820223,1781182242000,-151.0,0.00018675,2]
[424820224,1781182242000,-1592.87721992,0.00018675,2]
[424820218,1781182242000,-1536.04360648,0.00018675,2]
[424820225,1781182242000,-1050.42526909,0.00018675,2]
[424820221,1781182242000,-500.0,0.00018675,2]
[424820227,1781182242000,-500.0,0.00018675,2]
[424820238,1781182242000,-152.0,0.00018675,2]
[424820226,1781182242000,-151.0,0.00018675,2]
[424820239,1781182242000,-151.0,0.00018675,2]
[424820233,1781182242000,-152.0,0.00018675,2]
[424820234,1781182242000,-151.0,0.00018675,2]
[424820228,1781182242000,-152.0,0.00018675,2]
[424820235,1781182242000,-1712.93078311,0.00018675,2]
[424820232,1781182242000,-500.0,0.00018675,2]
[424820236,1781182242000,-151.0,0.00018675,2]
[424820237,1781182242000,-500.0,0.00018675,2]
[424820230,1781182242000,-1651.81367706,0.00018675,2]
[424820229,1781182242000,-151.0,0.00018675,2]
[424820231,1781182242000,-151.0,0.00018675,2]
[424820304,1781182243000,-151.0,0.0001906,2]
[424820312,1781182243000,-158.71838294,0.00019223,2]
[424820313,1781182243000,-200.0,0.00019223,2]
[424820310,1781182243000,-160.93281423,0.00019178,2]
[424820308,1781182243000,-258.53701901,0.0001917,2]
[424820303,1781182243000,-258.53701901,0.0001906,2]
[424820306,1781182243000,-151.0,0.00019115,2]
[424820307,1781182243000,-88190.7663667,0.00019165,2]
[424820311,1781182243000,-10212.09716464,0.000192,2]
[424820305,1781182243000,-258.53701901,0.00019115,2]
[424820309,1781182243000,-151.0,0.0001917,2]
[424820315,1781182243000,-217.15233878,0.00019223,2]
[424820328,1781182243000,-100000.0,0.00019339,7]
[424820316,1781182243000,-154.12265554,0.00019223,2]
[424820317,1781182243000,-217.15233878,0.00019223,2]
[424820320,1781182243000,-2157.14243826,0.00019223,2]
[424820319,1781182243000,-151.0,0.00019223,2]
[424820322,1781182243000,-1721.30632356,0.00019223,2]
[424820324,1781182243000,-151.0,0.00019224,2]
[424820323,1781182243000,-258.53701916,0.00019224,2]
[424820321,1781182243000,-151.0,0.00019223,2]
[424820318,1781182243000,-181.08010149,0.00019223,2]
[424820326,1781182243000,-578.11874858,0.00019267,2]
[424820325,1781182243000,-336.88575778,0.00019239,2]
[424820302,1781182243000,-17231.9220775,0.00019006,2]
[424820314,1781182243000,-151.0,0.00019223,2]
[424820301,1781182243000,-323.58349386,0.00019006,2]
[424820286,1781182243000,-151.0,0.00018895,2]
[424820299,1781182243000,-500.0,0.00019005,2]
[424820327,1781182243000,-500.0,0.00019338,2]
[424820277,1781182243000,-1277.99756819,0.0001873,2]
[424820272,1781182243000,-500.0,0.00018675,2]
[424820274,1781182243000,-10212.09716464,0.000187,2]
[424820273,1781182243000,-500.0,0.00018699,2]
[424820275,1781182243000,-258.53701901,0.0001873,2]
[424820271,1781182243000,-500.0,0.00018675,2]
[424820278,1781182243000,-151.0,0.0001873,2]
[424820279,1781182243000,-258.53701901,0.00018785,2]
[424820280,1781182243000,-151.0,0.00018785,2]